fUSD/lending_fUSD_20250226
["ID","MTS","AMOUNT","RATE_DAILY","PERIOD"]
[354549393,1740570653623,-639.09100774,0.00041095,14]
[354549394,1740570653632,-500.0,0.00041095,14]
[354549395,1740570653642,-500.0,0.00041095,14]
[354549396,1740570653651,-500.0,0.00041095,14]
[354549397,1740570653660,-500.0,0.00041095,14]
[354549398,1740570653670,-500.0,0.00041095,14]
[354549399,1740570653679,-309.87177773,0.00041095,14]
[354549400,1740570653688,-500.0,0.00041095,14]
[354549401,1740570653698,-2075.12,0.00041095,14]
[354549402,1740570653707,-1566.29,0.00041095,14]
[354549403,1740570653716,-503.37883673,0.00041095,14]
[354549404,1740570653726,-3346.02,0.00041095,14]
[354549405,1740570653735,-1198.59,0.00041095,14]
[354549406,1740570653744,-705.57484831,0.00041095,14]
[354549407,1740570653850,-1117.29515169,0.00041095,14]
[354549408,1740570653859,-722.57161893,0.00041095,14]
[354549409,1740570653871,-522.84838107,0.00041095,14]
[354549410,1740570653881,-500.0,0.00041095,14]
[354549411,1740570653890,-261.0770852,0.00041095,14]
[354549424,1740571832471,-250.0,0.00021,2]
[354549425,1740571832480,-250.0,0.00022,2]
[354549426,1740571832489,-300.0,0.00023,2]
[354549427,1740571832500,-4.92353999,0.000231,2]
[354549428,1740571832511,-245.07646001,0.000231,2]
[354549429,1740571832521,-250.0,0.000231,2]
[354549430,1740571832530,-386.56055844,0.00024917,2]
[354549431,1740571832541,-350.0,0.00025,2]
[354549432,1740571832551,-197.71367599,0.00026749,2]
[354549433,1740571832560,-204.01,0.00026849,2]
[354549434,1740571832570,-197.71367597,0.00031725,2]
[354549435,1740571832579,-250.74184561,0.000353,2]
[354549436,1740571832589,-697.82,0.00035645,2]
[354549437,1740571832598,-5680.56735928,0.00036278,30]
[354549438,1740571832610,-725.02027511,0.00036278,30]
[354549439,1740571832630,-1026.73024974,0.00036278,30]
[354549440,1740571832642,-3046.31294627,0.00036278,30]
[354549441,1740571832653,-1086.5926008,0.00036278,30]
[354549442,1740571832672,-481.529357,0.00036278,30]
[354549443,1740571832684,-812.80314112,0.00036278,30]
[354549444,1740571832715,-2478.61162481,0.00036278,30]
[354549445,1740571832739,-64052.85721557,0.00036278,30]
[354549446,1740571832750,-197.71367597,0.000367,2]
[354549447,1740571832760,-559.31319206,0.000368,2]
[354549448,1740571832770,-204.68970403,0.000369,7]
[354549449,1740571832780,-1373.0,0.000373,7]
[354549450,1740571832791,-697.82,0.00037908,2]
[354549451,1740571832800,-289.34,0.00038356,2]
[354549452,1740571832809,-526.87,0.00038625,2]
[354549453,1740571832818,-468.48,0.00038913,120]
[354549454,1740571832827,-22617.78274443,0.00039065,2]
[354549455,1740571832839,-1282.21725557,0.00039065,2]
[354549456,1740571832848,-2000.0,0.00039421,120]
[354549457,1740571832857,-150.0,0.00039479,30]
[354549458,1740571832867,-150.0,0.00039479,30]
[354549459,1740571832876,-547.61044465,0.00039479,30]
[354549460,1740571832886,-5280.69087169,0.00039479,30]
[354549461,1740571832895,-150.0,0.00039479,30]
[354549462,1740571832904,-495.71689059,0.00039479,30]
[354549463,1740571832913,-185.01,0.00039537,120]
[354549464,1740571832923,-2850.828,0.00039537,55]
[354549465,1740571832932,-186.952,0.00039537,55]
[354549467,1740571832941,-204.68970402,0.00039567,8]
[354549469,1740571832951,-1218.5788,0.0003978,2]
[354549471,1740571832960,-431.4717,0.0003978,2]
[354549473,1740571832969,-2641.093,0.0003978,2]
[354549475,1740571832978,-266.9752,0.0003978,2]
[354549477,1740571832987,-7960.9677,0.0003978,2]
[354549478,1740571832998,-1534.476,0.0003978,2]
[354549480,1740571833007,-1825.41887008,0.0003978,2]
[354549482,1740571833016,-161.84728313,0.00039875,2]
[354549484,1740571833026,-1092.9091,0.00039875,2]
[354549486,1740571833035,-1825.8659,0.00039875,2]
[354549488,1740571833045,-2514.2933,0.0003988,2]
[354549490,1740571833054,-1096.7287,0.0003988,2]
[354549492,1740571833063,-500.0,0.0003988,2]
[354549494,1740571833073,-36312.8427,0.0003988,2]
[354549496,1740571833082,-1000.0,0.0003988,2]
[354549498,1740571833092,-31055.15486922,0.0003988,2]
[354549500,1740571833103,-32361.97033078,0.0003988,2]
[354549502,1740571833112,-10035.4223,0.0003988,2]
[354549504,1740571833122,-7907.5208752,0.0003989,3]
[354549506,1740571833131,-37021.99378032,0.000399,40]
[354549509,1740571833142,-385.1781132,0.000399,40]
[354549512,1740571833161,-1498.78949728,0.000399,40]
[354549514,1740571833173,-576.15376175,0.000399,40]
[354549647,1740571838431,-36122.0573,0.0003978,2]
[354549648,1740571838441,-33891.49584745,0.000399,40]
[354549649,1740571838450,-3953.7604376,0.00039965,3]
[354549650,1740571838460,-3927.06,0.00039975,2]
[354549651,1740571838469,-187.99,0.0004,14]
[354549652,1740571838479,-682.83,0.0004,120]
[354549653,1740571838488,-682.65,0.0004,120]
[354549654,1740571838499,-682.65,0.0004,120]
[354549655,1740571838508,-682.65,0.0004,120]
[354549656,1740571838518,-1825.41887001,0.00040006,15]
[354549657,1740571838527,-1203.15399664,0.00040072,15]
[354549658,1740571838537,-697.82,0.00040172,2]
[354549659,1740571838546,-152.09,0.00040188,2]
[354549660,1740571838555,-1000.0,0.00040217,2]
[354549661,1740571838564,-3953.7604376,0.00040223,3]
[354549662,1740571838574,-1825.41887001,0.00040233,15]
[354549663,1740571838583,-1203.15399657,0.00040266,15]
[354549664,1740571838592,-268.7089389,0.00040273,4]
[354549666,1740571838602,-1825.41887001,0.00040459,15]
[354549668,1740571838611,-1825.41887001,0.00040685,15]
[354549670,1740571838620,-403.09279251,0.00040811,2]
[354549672,1740571838630,-316.7,0.00040822,2]
[354549674,1740571838639,-192.6,0.00040822,2]
[354549676,1740571838648,-878.58,0.00040822,2]
[354549678,1740571838657,-150.0,0.00040822,2]
[354549680,1740571838666,-3953.7604376,0.00040902,4]
[354549682,1740571838675,-1825.41887001,0.00040912,15]
[354549684,1740571838685,-1613.15,0.00040959,2]
[354549686,1740571838695,-403.09279251,0.00040976,2]
[354549688,1740571838704,-201.98019745,0.00040978,13]
[354549690,1740571838717,-305.05724264,0.00040984,2]
[354549691,1740571838727,-931.3905,0.00040985,2]
[354549692,1740571838736,-3953.7604376,0.0004099,4]
[354549694,1740571838746,-399.45459262,0.00040995,15]
[354549696,1740571838757,-201.2428,0.00040995,2]
[354549698,1740571838766,-853.6342,0.00040995,2]
[354549700,1740571838776,-2000.0,0.00041,2]
[354549702,1740571838786,-5285.72752878,0.00041,30]
[354549704,1740571838796,-453.6,0.00041069,9]
[354549706,1740571838806,-29361.12471602,0.00041074,120]
[354549708,1740571838815,-11861.2813128,0.00041074,4]
[354549711,1740571838824,-23722.5626256,0.00041075,4]
[354549713,1740571838834,-3953.7604376,0.00041084,4]
[354549714,1740571838843,-49911.26810584,0.00041085,4]
[354549717,1740571838859,-1042.82955653,0.00041085,4]
[354549719,1740571838870,-1343.6683972,0.00041085,4]
[354549722,1740571838881,-6112.93541835,0.00041085,4]
[354549724,1740571838893,-79970.91383808,0.00041085,4]
[354549726,1740571838902,-155.85666798,0.00041085,7]
[354549728,1740571838911,-167.0,0.00041093,14]
[354549730,1740571838919,-200.70767847,0.00041093,14]
[354549732,1740571838928,-155.0,0.00041093,14]
[354549734,1740571838937,-167.34373526,0.00041093,14]
[354549736,1740571838946,-155.0,0.00041093,14]
[354549738,1740571838960,-155.0,0.00041093,14]
[354549740,1740571838969,-257.81423192,0.00041093,14]
[354549742,1740571838978,-191.65626796,0.00041094,31]
[354549743,1740571838987,-500.0,0.00041094,31]
[354549745,1740571838998,-500.0,0.00041094,31]
[354549747,1740571839007,-500.0,0.00041094,31]
[354549749,1740571839016,-500.0,0.00041094,31]
[354549751,1740571839026,-500.0,0.00041094,31]
[354549753,1740571839035,-500.0,0.00041094,31]
[354549755,1740571839045,-628.02436214,0.00041094,31]
[354549756,1740571839054,-500.0,0.00041094,31]
[354549757,1740571839063,-500.0,0.00041094,31]
[354549758,1740571839072,-450.0,0.00041094,31]
[354549759,1740571839082,-476.98500927,0.00041094,31]
[354549760,1740571839091,-150.0,0.00041094,30]
[354549761,1740571839101,-2528.0,0.00041095,5]
[354549762,1740571839110,-500.0,0.00041095,14]
[354549763,1740571839120,-504.17839738,0.00041095,14]
[354549764,1740571839129,-823.289101,0.00041095,14]
[354549765,1740571839138,-500.15845065,0.00041095,14]
[354549766,1740571839147,-500.0,0.00041095,14]
[354549767,1740571839156,-500.0,0.00041095,14]
[354549768,1740571839166,-500.0,0.00041095,14]
[354549769,1740571839175,-245.60112337,0.00041095,14]
[354549770,1740571839184,-837.01,0.00041095,14]
[354549771,1740571839193,-782.31,0.00041095,14]
[354549772,1740571839203,-1023.22,0.00041095,14]
[354549773,1740571839212,-500.0,0.00041095,14]
[354549774,1740571839222,-1624.2,0.00041095,14]
[354549775,1740571839231,-500.0,0.00041095,14]
[354549776,1740571839240,-553.64331468,0.00041095,14]
[354549777,1740571839250,-1173.88,0.00041095,14]
[354549778,1740571839259,-500.0,0.00041095,14]
[354549779,1740571839269,-500.0,0.00041095,14]
[354549780,1740571839278,-1232.99,0.00041095,14]
[354549781,1740571839287,-659.43,0.00041095,14]
[354549782,1740571839297,-500.0,0.00041095,14]
[354549784,1740571839307,-500.0,0.00041095,14]
[354549786,1740571839316,-435.36654198,0.00041095,14]
[354549788,1740571839325,-500.0,0.00041095,14]
[354549790,1740571839335,-926.41,0.00041095,14]
[354549792,1740571839344,-804.41,0.00041095,14]
[354549794,1740571839354,-1498.64,0.00041095,14]
[354549796,1740571839363,-652.62,0.00041095,14]
[354549798,1740571839374,-1029.91,0.00041095,14]
[354549800,1740571839383,-500.0,0.00041095,14]
[354549802,1740571839394,-500.0,0.00041095,14]
[354549804,1740571839404,-500.0,0.00041095,14]
[354549806,1740571839413,-500.0,0.00041095,14]
[354549808,1740571839423,-500.0,0.00041095,14]
[354549810,1740571839432,-1804.22,0.00041095,14]
[354549811,1740571839441,-1395.35,0.00041095,14]
[354549813,1740571839450,-500.0,0.00041095,14]
[354549815,1740571839459,-500.0,0.00041095,14]
[354549817,1740571839468,-500.0,0.00041095,14]
[354549819,1740571839477,-263.34103883,0.00041095,14]
[354549821,1740571839487,-500.0,0.00041095,14]
[354549823,1740571839496,-614.94,0.00041095,14]
[354549825,1740571839508,-500.0,0.00041095,14]
[354549827,1740571839517,-600.77,0.00041095,14]
[354549829,1740571839526,-750.18,0.00041095,14]
[354549830,1740571839535,-500.0,0.00041095,14]
[354549833,1740571839545,-500.0,0.00041095,14]
[354549835,1740571839554,-844.03,0.00041095,14]
[354549837,1740571839563,-500.0,0.00041095,14]
[354549838,1740571839572,-500.0,0.00041095,14]
[354549840,1740571839581,-500.0,0.00041095,14]
[354549842,1740571839590,-500.0,0.00041095,14]
[354549844,1740571839600,-672.01,0.00041095,14]
[354549846,1740571839610,-500.0,0.00041095,14]
[354549849,1740571839619,-500.0,0.00041095,14]
[354549850,1740571839628,-1432.38,0.00041095,14]
[354549852,1740571839638,-500.0,0.00041095,14]
[354549854,1740571839647,-1383.57,0.00041095,14]
[354549856,1740571839656,-1334.22,0.00041095,14]
[354549858,1740571839666,-923.21,0.00041095,14]
[354549861,1740571839675,-500.0,0.00041095,14]
[354549863,1740571839685,-574.59,0.00041095,14]
[354549865,1740571839699,-913.51,0.00041095,14]
[354549867,1740571839709,-500.0,0.00041095,14]
[354549869,1740571839722,-606.25,0.00041095,14]
[354549871,1740571839732,-591.49,0.00041095,14]
[354549874,1740571839755,-1015.86,0.00041095,14]
[354549876,1740571839765,-500.0,0.00041095,14]
[354549878,1740571839775,-500.0,0.00041095,14]
[354549880,1740571839785,-500.0,0.00041095,14]
[354549882,1740571839795,-500.0,0.00041095,14]
[354549884,1740571839804,-1178.16,0.00041095,14]
[354549886,1740571839818,-524.0,0.00041095,14]
[354549888,1740571839827,-506.45055488,0.00041095,14]
[354549890,1740571839837,-1121.51,0.00041095,14]
[354549892,1740571839847,-500.0,0.00041095,14]
[354549894,1740571839857,-500.0,0.00041095,14]
[354549896,1740571839866,-500.0,0.00041095,14]
[354549898,1740571839876,-1127.38,0.00041095,14]
[354549900,1740571839886,-1039.77,0.00041095,14]
[354549903,1740571839896,-774.21,0.00041095,14]
[354549904,1740571839906,-881.87,0.00041095,14]
[354549906,1740571839916,-500.0,0.00041095,14]
[354549907,1740571839926,-500.0,0.00041095,14]
[354549908,1740571839936,-588.12,0.00041095,14]
[354549909,1740571839945,-500.0,0.00041095,14]
[354549910,1740571839954,-500.0,0.00041095,14]
[354549911,1740571839964,-500.0,0.00041095,14]
[354549912,1740571839973,-500.0,0.00041095,14]
[354549913,1740571839983,-500.0,0.00041095,14]
[354549914,1740571839993,-1506.9,0.00041095,14]
[354549915,1740571840003,-1547.46,0.00041095,14]
[354549916,1740571840012,-507.18,0.00041095,14]
[354549917,1740571840022,-1055.78,0.00041095,14]
[354549918,1740571840033,-500.0,0.00041095,14]
[354549919,1740571840043,-500.0,0.00041095,14]
[354549921,1740571840053,-500.0,0.00041095,14]
[354549923,1740571840063,-574.81006775,0.00041095,14]
[354549925,1740571840072,-500.0,0.00041095,14]
[354549927,1740571840082,-500.0,0.00041095,14]
[354549929,1740571840091,-500.0,0.00041095,14]
[354549931,1740571840101,-683.66,0.00041095,14]
[354549933,1740571840110,-500.0,0.00041095,14]
[354549935,1740571840119,-500.0,0.00041095,14]
[354549937,1740571840128,-500.0,0.00041095,14]
[354549939,1740571840138,-500.0,0.00041095,14]
[354549941,1740571840147,-500.0,0.00041095,14]
[354549943,1740571840158,-502.4719129,0.00041095,14]
[354549945,1740571840167,-500.0,0.00041095,14]
[354549947,1740571840177,-500.0,0.00041095,14]
[354549949,1740571840186,-500.0,0.00041095,14]
[354549951,1740571840196,-500.0,0.00041095,14]
[354549953,1740571840206,-500.0,0.00041095,14]
[354549955,1740571840215,-500.0,0.00041095,14]
[354549957,1740571840224,-500.0,0.00041095,14]
[354549959,1740571840234,-1573.48,0.00041095,14]
[354549961,1740571840243,-150.475591,0.00041095,14]
[354549963,1740571840253,-500.0,0.00041095,14]
[354549965,1740571840262,-500.0,0.00041095,14]
[354549967,1740571840271,-500.0,0.00041095,14]
[354549969,1740571840282,-422.99889348,0.00041095,14]
[354549971,1740571840291,-500.0,0.00041095,14]
[354549973,1740571840301,-500.0,0.00041095,14]
[354549975,1740571840310,-1087.2,0.00041095,14]
[354549977,1740571840319,-500.0,0.00041095,14]
[354549979,1740571840329,-1501.02,0.00041095,14]
[354549982,1740571840339,-1564.63,0.00041095,14]
[354549984,1740571840351,-1158.33,0.00041095,14]
[354549986,1740571840360,-565.1,0.00041095,14]
[354549988,1740571840370,-702.34,0.00041095,14]
[354549990,1740571840379,-500.0,0.00041095,14]
[354549992,1740571840389,-500.0,0.00041095,14]
[354549994,1740571840399,-500.0,0.00041095,14]
[354549996,1740571840409,-500.0,0.00041095,14]
[354549998,1740571840419,-771.96,0.00041095,14]
[354550000,1740571840428,-500.0,0.00041095,14]
[354550002,1740571840439,-1221.84,0.00041095,14]
[354550004,1740571840448,-500.0,0.00041095,14]
[354550006,1740571840458,-500.0,0.00041095,14]
[354550008,1740571840467,-1147.53,0.00041095,14]
[354550010,1740571840477,-500.0,0.00041095,14]
[354550012,1740571840487,-501.51295068,0.00041095,14]
[354550014,1740571840497,-500.0,0.00041095,14]
[354550016,1740571840507,-500.0,0.00041095,14]
[354550018,1740571840517,-500.0,0.00041095,14]
[354550020,1740571840527,-524.34575072,0.00041095,14]
[354550022,1740571840536,-624.64,0.00041095,14]
[354550024,1740571840545,-500.0,0.00041095,14]
[354550026,1740571840555,-500.0,0.00041095,14]
[354550028,1740571840564,-2500.23,0.00041095,14]
[354550030,1740571840574,-500.0,0.00041095,14]
[354550032,1740571840583,-2356.5,0.00041095,14]
[354550034,1740571840593,-500.0,0.00041095,14]
[354550036,1740571840603,-1988.65,0.00041095,14]
[354550038,1740571840612,-500.0,0.00041095,14]
[354550040,1740571840621,-500.0,0.00041095,14]
[354550042,1740571840631,-500.0,0.00041095,14]
[354550044,1740571840640,-500.0,0.00041095,14]
[354550046,1740571840650,-500.0,0.00041095,14]
[354550048,1740571840659,-500.0,0.00041095,14]
[354550050,1740571840668,-500.0,0.00041095,14]
[354550052,1740571840678,-500.0,0.00041095,14]
[354550055,1740571840687,-555.45,0.00041095,14]
[354550057,1740571840697,-500.0,0.00041095,14]
[354550059,1740571840710,-668.19,0.00041095,14]
[354550060,1740571840723,-500.0,0.00041095,14]
[354550063,1740571840734,-500.0,0.00041095,14]
[354550064,1740571840744,-500.0,0.00041095,14]
[354550066,1740571840755,-500.0,0.00041095,14]
[354550069,1740571840765,-171.20333321,0.00041095,14]
[354550071,1740571840774,-500.0,0.00041095,14]
[354550073,1740571840786,-879.25,0.00041095,14]
[354550075,1740571840796,-162.029449,0.00041095,14]
[354550077,1740571840805,-500.0,0.00041095,14]
[354550079,1740571840815,-1545.22,0.00041095,14]
[354550081,1740571840824,-500.0,0.00041095,14]
[354550083,1740571840833,-1012.3,0.00041095,14]
[354550085,1740571840843,-500.0,0.00041095,14]
[354550087,1740571840852,-500.0,0.00041095,14]
[354550089,1740571840861,-501.43455077,0.00041095,14]
[354550091,1740571840871,-500.0,0.00041095,14]
[354550093,1740571840880,-500.0,0.00041095,14]
[354550095,1740571840889,-503.04905168,0.00041095,14]
[354550097,1740571840898,-500.0,0.00041095,14]
[354550099,1740571840907,-500.0,0.00041095,14]
[354550101,1740571840916,-500.0,0.00041095,14]
[354550103,1740571840926,-500.0,0.00041095,14]
[354550104,1740571840935,-1438.76,0.00041095,14]
[354550106,1740571840944,-724.35,0.00041095,14]
[354550108,1740571840954,-500.0,0.00041095,14]
[354550110,1740571840963,-579.24,0.00041095,14]
[354550112,1740571840973,-500.0,0.00041095,14]
[354550114,1740571840982,-500.0,0.00041095,14]
[354550116,1740571840992,-507.4786766,0.00041095,14]
[354550118,1740571841003,-1385.77,0.00041095,14]
[354550120,1740571841012,-501.63531901,0.00041095,14]
[354550122,1740571841021,-500.0,0.00041095,14]
[354550124,1740571841031,-568.04,0.00041095,14]
[354550127,1740571841041,-1041.59,0.00041095,14]
[354550129,1740571841051,-500.0,0.00041095,14]
[354550131,1740571841060,-500.0,0.00041095,14]
[354550133,1740571841069,-1194.22,0.00041095,14]
[354550135,1740571841078,-500.0,0.00041095,14]
[354550137,1740571841087,-507.02032506,0.00041095,14]
[354550139,1740571841096,-500.0,0.00041095,14]
[354550141,1740571841105,-500.47178382,0.00041095,14]
[354550143,1740571841115,-1416.33,0.00041095,14]
[354550145,1740571841123,-911.12,0.00041095,14]
[354550147,1740571841133,-2380.31,0.00041095,14]
[354550149,1740571841143,-500.0,0.00041095,14]
[354550151,1740571841152,-500.0,0.00041095,14]
[354550153,1740571841161,-500.0,0.00041095,14]
[354550155,1740571841171,-500.0,0.00041095,14]
[354550157,1740571841180,-1621.34,0.00041095,14]
[354550159,1740571841189,-860.0,0.00041095,14]
[354550161,1740571841199,-500.0,0.00041095,14]
[354550163,1740571841208,-632.9937264,0.00041095,14]
[354550165,1740571841217,-500.38375879,0.00041095,14]
[354550167,1740571841226,-500.0,0.00041095,14]
[354550169,1740571841235,-2020.84,0.00041095,14]
[354550171,1740571841245,-500.0,0.00041095,14]
[354550172,1740571841255,-500.0,0.00041095,14]
[354550174,1740571841264,-500.0,0.00041095,14]
[354550176,1740571841274,-500.0,0.00041095,14]
[354550178,1740571841283,-1131.27,0.00041095,14]
[354550180,1740571841292,-500.0,0.00041095,14]
[354550182,1740571841301,-500.0,0.00041095,14]
[354550184,1740571841310,-500.0,0.00041095,14]
[354550186,1740571841319,-2534.81,0.00041095,14]
[354550188,1740571841328,-500.0,0.00041095,14]
[354550190,1740571841337,-2002.581787,0.00041095,14]
[354550192,1740571841347,-588.26,0.00041095,14]
[354550194,1740571841355,-500.0,0.00041095,14]
[354550196,1740571841365,-500.0,0.00041095,14]
[354550198,1740571841374,-1060.99,0.00041095,14]
[354550200,1740571841383,-500.0,0.00041095,14]
[354550202,1740571841392,-731.96,0.00041095,14]
[354550204,1740571841401,-500.0,0.00041095,14]
[354550206,1740571841411,-546.0,0.00041095,14]
[354550208,1740571841420,-500.0,0.00041095,14]
[354550210,1740571841431,-1868.2,0.00041095,14]
[354550212,1740571841440,-500.0,0.00041095,14]
[354550214,1740571841449,-904.17,0.00041095,14]
[354550216,1740571841458,-500.0,0.00041095,14]
[354550218,1740571841467,-314.57159424,0.00041095,14]
[354550302,1740571842215,-1882.07840576,0.00041095,14]
[354550307,1740571842224,-500.0,0.00041095,14]
[354550313,1740571842234,-500.0,0.00041095,14]
[354550316,1740571842244,-500.0,0.00041095,14]
[354550319,1740571842253,-500.74845636,0.00041095,14]
[354550321,1740571842262,-813.26,0.00041095,14]
[354550324,1740571842271,-500.0,0.00041095,14]
[354550327,1740571842280,-1235.39,0.00041095,14]
[354550329,1740571842289,-169.39332265,0.00041095,14]
[354550332,1740571842306,-331.66063424,0.00041095,14]
[354550334,1740571842315,-500.0,0.00041095,14]
[354550338,1740571842324,-819.97409433,0.00041095,14]
[354550343,1740571842344,-178.02590567,0.00041095,14]
[354550345,1740571842353,-1821.97409433,0.00041095,14]
[354550417,1740571842866,-268.92,0.0004046,15]
[354550419,1740571842879,-934.23399657,0.0004046,15]
[354550421,1740571842888,-1373.62590567,0.00041095,14]
[354550423,1740571842898,-527.71356765,0.00041095,14]
[354550425,1740571842907,-759.33,0.00041095,14]
[354550427,1740571842916,-500.0,0.00041095,14]
[354550429,1740571842925,-505.28,0.00041095,14]
[354550432,1740571842934,-500.0,0.00041095,14]
[354550435,1740571842943,-536.71324907,0.00041095,14]
[354550437,1740571842952,-1886.4,0.00041095,14]
[354550438,1740571842960,-1999.52,0.00041095,14]
[354550439,1740571842969,-1787.52,0.00041095,14]
[354550440,1740571842978,-1175.55,0.00041095,14]
[354550441,1740571842987,-500.0,0.00041095,14]
[354550442,1740571842995,-500.0,0.00041095,14]
[354550443,1740571843005,-500.0,0.00041095,14]
[354550444,1740571843014,-659.44,0.00041095,14]
[354550445,1740571843023,-501.33875905,0.00041095,14]
[354550446,1740571843033,-500.0,0.00041095,14]
[354550447,1740571843042,-2083.87,0.00041095,14]
[354550448,1740571843050,-500.0,0.00041095,14]
[354550450,1740571843060,-1012.91,0.00041095,14]
[354550452,1740571843069,-500.0,0.00041095,14]
[354550454,1740571843078,-501.74851963,0.00041095,14]
[354550456,1740571843087,-500.0,0.00041095,14]
[354550458,1740571843097,-500.0,0.00041095,14]
[354550460,1740571843107,-551.32,0.00041095,14]
[354550462,1740571843122,-500.0,0.00041095,14]
[354550464,1740571843131,-500.0,0.00041095,14]
[354550466,1740571843140,-770.02,0.00041095,14]
[354550468,1740571843149,-1355.65,0.00041095,14]
[354550470,1740571843158,-797.3,0.00041095,14]
[354550472,1740571843168,-500.0,0.00041095,14]
[354550474,1740571843177,-1173.55,0.00041095,14]
[354550476,1740571843187,-588.08,0.00041095,14]
[354550478,1740571843196,-500.0,0.00041095,14]
[354550480,1740571843205,-500.0,0.00041095,14]
[354550482,1740571843215,-549.8856837,0.00041095,14]
[354550484,1740571843224,-502.70360528,0.00041095,14]
[354550486,1740571843233,-500.0,0.00041095,14]
[354550488,1740571843242,-1496.57,0.00041095,14]
[354550490,1740571843252,-500.0,0.00041095,14]
[354550493,1740571843262,-503.49563931,0.00041095,14]
[354550494,1740571843271,-2568.67,0.00041095,14]
[354550497,1740571843281,-500.0,0.00041095,14]
[354550498,1740571843291,-500.0,0.00041095,14]
[354550500,1740571843302,-1820.09,0.00041095,14]
[354550503,1740571843311,-500.0,0.00041095,14]
[354550505,1740571843321,-852.08,0.00041095,14]
[354550507,1740571843331,-1094.27,0.00041095,14]
[354550508,1740571843340,-500.0,0.00041095,14]
[354550510,1740571843349,-500.0,0.00041095,14]
[354550512,1740571843358,-457.86609288,0.00041095,14]
[354550514,1740571843367,-500.0,0.00041095,14]
[354550516,1740571843376,-788.43,0.00041095,14]
[354550518,1740571843385,-500.0,0.00041095,14]
[354550520,1740571843395,-1163.14,0.00041095,14]
[354550522,1740571843404,-500.0,0.00041095,14]
[354550524,1740571843413,-500.0,0.00041095,14]
[354550526,1740571843422,-2176.87,0.00041095,14]
[354550528,1740571843431,-1619.57,0.00041095,14]
[354550530,1740571843440,-1115.17,0.00041095,14]
[354550532,1740571843449,-500.0,0.00041095,14]
[354550534,1740571843459,-500.0,0.00041095,14]
[354550536,1740571843468,-500.0,0.00041095,14]
[354550538,1740571843478,-500.0,0.00041095,14]
[354550540,1740571843487,-566.46,0.00041095,14]
[354550542,1740571843497,-500.0,0.00041095,14]
[354550544,1740571843507,-1120.84,0.00041095,14]
[354550546,1740571843516,-500.0,0.00041095,14]
[354550548,1740571843525,-674.8,0.00041095,14]
[354550550,1740571843534,-1956.48,0.00041095,14]
[354550552,1740571843545,-500.58863122,0.00041095,14]
[354550554,1740571843554,-1735.7,0.00041095,14]
[354550556,1740571843563,-1586.62,0.00041095,14]
[354550558,1740571843572,-500.0,0.00041095,14]
[354550560,1740571843581,-2278.51,0.00041095,14]
[354550562,1740571843590,-500.0,0.00041095,14]
[354550564,1740571843599,-500.0,0.00041095,14]
[354550566,1740571843610,-500.0,0.00041095,14]
[354550568,1740571843619,-688.94,0.00041095,14]
[354550570,1740571843628,-500.0,0.00041095,14]
[354550572,1740571843636,-500.0,0.00041095,14]
[354550574,1740571843646,-500.0,0.00041095,14]
[354550576,1740571843655,-500.0,0.00041095,14]
[354550578,1740571843664,-500.47000866,0.00041095,14]